bitfinex-derivatives/quotes_BNBF0:USTF0_20250211
["timestamp","ask_amount","ask_price","bid_price","bid_amount"]
[1739248618754,1.07685604,625.48,624.06,0.320482]
[1739248618957,0.85979835,625.47,624.06,0.320482]
[1739248619155,0.85979835,625.46,624.06,0.320482]
[1739248619362,0.85983921,625.45,624.06,0.320482]
[1739248619554,1.37568168,625.86,624.06,0.320482]
[1739248619862,0.31957049,625.84,624.06,0.320482]
[1739248620064,0.85982259,625.83,624.06,0.320482]
[1739248620255,1.1794033,625.82,624.06,0.320482]
[1739248620459,2.55512454,625.81,624.06,0.320482]
[1739248620760,2.55512965,625.8,624.06,0.320482]
[1739248620964,2.55513476,625.79,624.06,0.320482]
[1739248621262,2.55513986,625.78,624.06,0.320482]
[1739248621462,2.55514497,625.77,624.06,0.320482]
[1739248621661,2.55515008,625.76,624.06,0.320482]
[1739248621865,2.55515519,625.75,624.06,0.320482]
[1739248622065,2.55516029,625.74,624.06,0.320482]
[1739248622259,2.5551654,625.73,624.06,0.320482]
[1739248622459,2.55517051,625.72,624.06,0.320482]
[1739248622759,2.55517562,625.71,624.06,0.320482]
[1739248622958,3.63203677,625.7,624.06,0.320482]
[1739248623159,2.55518583,625.69,624.06,0.320482]
[1739248623366,2.55519094,625.68,624.06,0.320482]
[1739248623566,2.55519605,625.67,624.06,0.320482]
[1739248623867,2.55520116,625.66,624.06,0.320482]
[1739248624070,2.55520627,625.65,624.06,0.320482]
[1739248624368,2.55521138,625.64,624.06,0.320482]
[1739248624561,2.23553873,625.63,624.06,0.320482]
[1739248624764,0.61359955,625.62,624.06,0.320482]
[1739248624961,1.47342725,625.61,624.06,0.320482]
[1739248625165,3.60631145,625.6,624.06,0.320482]
[1739248625360,2.84915361,625.59,624.06,0.320482]
[1739248625562,3.92601476,625.58,624.06,0.320482]
[1739248625761,2.55524715,625.57,624.06,0.320482]
[1739248625967,2.55525226,625.56,624.06,0.320482]
[1739248626163,2.84919817,625.55,624.06,0.320482]
[1739248626365,2.84920328,625.54,624.06,0.320482]
[1739248626567,2.52947953,625.53,624.06,0.320482]
[1739248626864,2.53076633,625.52,624.06,0.320482]
[1739248627068,2.85050542,625.51,624.06,0.320482]
[1739248627269,2.85051053,625.5,624.06,0.320482]
[1739248627464,2.55654833,625.49,624.06,0.320482]
[1739248627667,2.55655344,625.48,624.06,0.320482]
[1739248627861,2.23679902,625.47,624.06,0.320482]
[1739248628066,2.23679902,625.46,624.06,0.320482]
[1739248628670,1.07685604,625.45,624.06,0.320482]
[1739248628862,2.23679902,625.44,624.06,0.320482]
[1739248629066,1.08134675,625.43,624.06,0.320482]
[1739248629266,2.23679902,625.42,624.06,0.320482]
[1739248629670,1.08134675,625.41,624.06,0.320482]
[1739248629870,0.86030731,625.4,624.06,0.320482]
[1739248630466,1.08134675,625.39,624.06,0.320482]
[1739248630774,0.86030731,625.38,624.06,0.320482]
[1739248631166,0.86055454,625.38,624.06,0.320482]
[1739248631767,1.08134675,625.37,624.06,0.320482]
[1739248632072,0.86055454,625.36,624.06,0.320482]
[1739248632967,1.08134675,625.35,624.06,0.320482]
[1739248633274,0.86116967,625.34,624.06,0.320482]
[1739248633976,1.08134675,625.33,624.06,0.320482]
[1739248634574,0.31975442,625.48,624.06,0.320482]
[1739248634773,0.86113736,625.47,624.06,0.320482]
[1739248635574,1.08134675,625.46,624.06,0.320482]
[1739248635774,0.86113736,625.45,624.06,0.320482]
[1739248636273,1.08134675,625.44,624.06,0.320482]
[1739248636474,2.23946216,625.43,624.06,0.320482]
[1739248636674,0.3197851,625.42,624.06,0.320482]
[1739248636875,0.86113736,625.41,624.06,0.320482]
[1739248637074,0.86113736,625.4,624.06,0.320482]
[1739248637270,0.86183214,625.39,624.06,0.320482]
[1739248637471,0.86183214,625.38,624.06,0.320482]
[1739248637670,1.18164281,625.37,624.06,0.320482]
[1739248637876,2.56057934,625.36,624.06,0.320482]
[1739248638072,2.56058446,625.35,624.06,0.320482]
[1739248638278,2.56058957,625.34,624.06,0.320482]
[1739248638578,2.56059468,625.33,624.06,0.320482]
[1739248638776,2.5605998,625.32,624.06,0.320482]
[1739248638977,2.56060491,625.31,624.06,0.320482]
[1739248639175,2.24076356,625.3,624.06,0.320482]
[1739248639371,2.24076356,625.29,624.06,0.320482]
[1739248639572,2.24076356,625.28,624.06,0.320482]
[1739248639972,1.08134675,625.27,624.06,0.320482]
[1739248640171,2.24076356,625.26,624.06,0.320482]
[1739248640571,1.08134675,625.25,624.06,0.320482]
[1739248640771,2.24076356,625.24,624.06,0.320482]
[1739248640972,1.08134675,625.23,624.06,0.320482]
[1739248641176,2.24076356,625.22,624.06,0.320482]
[1739248641577,1.08134675,625.21,624.06,0.320482]
[1739248641774,0.86183214,625.2,624.06,0.320482]
[1739248641972,1.08134675,625.19,624.06,0.320482]
[1739248642171,0.86183214,625.18,624.06,0.320482]
[1739248642478,1.08134675,625.17,624.06,0.320482]
[1739248642675,0.86183214,625.16,624.06,0.320482]
[1739248643277,1.08134675,625.15,624.06,0.320482]
[1739248643578,0.86223277,625.14,624.06,0.320482]
[1739248643979,1.08134675,625.15,624.06,0.320482]
[1739248643980,1.94360562,625.13,624.06,0.320482]
[1739248644176,1.08134675,625.13,624.06,0.320482]
[1739248644575,0.86216589,625.12,624.06,0.320482]
[1739248644778,1.08134675,625.3,624.06,0.320482]
[1739248644979,2.24164015,625.29,624.06,0.320482]
[1739248645179,1.08134675,625.28,624.06,0.320482]
[1739248645379,2.24164015,625.27,624.06,0.320482]
[1739248645583,2.24155213,625.26,624.06,0.320482]
[1739248645777,3.32289888,625.25,624.06,0.320482]
[1739248645981,2.24155213,625.24,624.06,0.320482]
[1739248646380,1.08134675,625.23,624.06,0.320482]
[1739248646581,2.24155213,625.22,624.06,0.320482]
[1739248647182,1.94348218,625.21,624.06,0.320482]
[1739248647378,0.86213543,625.2,624.06,0.320482]
[1739248648185,1.08134675,625.19,624.06,0.320482]
[1739248648479,0.86213543,625.18,624.06,0.320482]
[1739248649285,1.08134675,625.17,624.06,0.320482]
[1739248650079,0.86204331,625.16,624.06,0.320482]
[1739248650281,1.08134675,625.15,624.06,0.320482]
[1739248650483,0.86200419,625.14,624.06,0.320482]
[1739248650683,1.08134675,625.15,624.06,0.320482]
[1739248650985,1.08134675,625.13,624.06,0.320482]
[1739248651487,1.08134675,625.3,624.06,0.320482]
[1739248651784,2.24109371,625.29,624.06,0.320482]
[1739248652385,1.08134675,625.28,624.06,0.320482]
[1739248652583,2.24109371,625.27,624.06,0.320482]
[1739248652985,1.08134675,625.26,624.06,0.320482]
[1739248653185,2.24109371,625.25,624.06,0.320482]
[1739248653883,2.56098689,625.24,624.06,0.320482]
[1739248654082,2.56099201,625.23,624.06,0.320482]
[1739248654283,2.24110973,625.22,624.06,0.320482]
[1739248654483,0.31988228,625.23,624.06,0.320482]
[1739248654682,1.08134675,625.21,624.06,0.320482]
[1739248654887,2.24080059,625.2,624.06,0.320482]
[1739248655286,3.32214734,625.2,624.06,0.320482]
[1739248655482,2.24080059,625.19,624.06,0.320482]
[1739248655886,1.08134675,625.18,624.06,0.320482]
[1739248656084,0.86184638,625.17,624.06,0.320482]
[1739248656280,1.08134675,625.18,624.06,0.320482]
[1739248656484,0.31988228,625.23,624.06,0.320482]
[1739248657283,0.86154273,625.22,624.06,0.320482]
[1739248657687,1.08289284,625.21,624.06,0.320482]
[1739248657887,0.86154273,625.2,624.06,0.320482]
[1739248658589,1.94443557,625.19,624.06,0.320482]
[1739248658786,1.94443557,625.18,624.06,0.320482]
[1739248658989,0.86154273,625.17,624.06,0.320482]
[1739248659586,1.08289284,625.16,624.06,0.320482]
[1739248659784,0.86154273,625.15,624.06,0.320482]
[1739248660385,1.08289284,625.14,624.06,0.320482]
[1739248660986,0.31988228,625.23,624.06,0.320482]
[1739248661185,0.86169258,625.22,624.06,0.320482]
[1739248661590,1.08289284,625.21,624.06,0.320482]
[1739248661790,2.24040071,625.2,624.06,0.320482]
[1739248662285,1.08289284,625.19,624.06,0.320482]
[1739248662487,2.24040071,625.18,624.06,0.320482]
[1739248662687,0.86169258,625.17,624.06,0.320482]
[1739248662889,0.86169258,625.16,624.06,0.320482]
[1739248663089,0.86169258,625.15,624.06,0.320482]
[1739248663285,0.86169258,625.14,624.06,0.320482]
[1739248663485,0.86169258,625.13,624.06,0.320482]
[1739248663787,1.08289284,625.12,624.06,0.320482]
[1739248663991,0.86169258,625.11,624.06,0.320482]
[1739248664382,1.08289284,625.1,624.06,0.320482]
[1739248664583,0.86169258,625.09,624.06,0.320482]
[1739248665092,1.08289284,625.08,624.06,0.320482]
[1739248665292,0.86169258,625.07,624.06,0.320482]
[1739248665993,1.08289284,625.06,624.06,0.320482]
[1739248666292,0.86169258,625.05,624.06,0.320482]
[1739248667096,1.08289284,625.04,624.06,0.320482]
[1739248667694,0.31988228,625.23,624.06,0.320482]
[1739248671697,0.86070008,625.22,624.06,0.320482]
[1739248672201,1.08170257,625.21,624.06,0.320482]
[1739248672401,0.86070008,625.2,624.06,0.320482]
[1739248673203,1.08170257,625.19,624.06,0.320482]
[1739248673503,0.86078023,625.18,624.06,0.320482]
[1739248673997,1.08170257,625.17,624.06,0.320482]
[1739248674202,0.86078023,625.16,624.06,0.320482]
[1739248674697,1.94250001,625.15,624.06,0.320482]
[1739248674898,0.86079744,625.14,624.06,0.320482]
[1739248675300,1.08170257,625.15,624.06,0.320482]
[1739248675602,1.08170257,625.13,624.06,0.320482]
[1739248676100,1.19745275,625.76,624.06,0.320482]
[1739248676101,1.08170257,625.75,624.06,0.320482]
[1739248676296,2.55646024,625.74,624.06,0.320482]
[1739248676502,2.55646535,625.73,624.06,0.320482]
[1739248676802,3.63817303,625.72,624.06,0.320482]
[1739248677004,2.55647557,625.71,624.06,0.320482]
[1739248677199,3.63818325,625.7,624.06,0.320482]
[1739248677395,2.55648578,625.69,624.06,0.320482]
[1739248677597,2.55649089,625.68,624.06,0.320482]
[1739248677803,2.556496,625.67,624.06,0.320482]
[1739248677997,2.55650111,625.66,624.06,0.320482]
[1739248678200,3.63820879,625.65,624.06,0.320482]
[1739248678400,2.23683868,625.64,624.06,0.320482]
[1739248678700,1.08170257,625.63,624.06,0.320482]
[1739248678903,0.86032257,625.62,624.06,0.320482]
[1739248679599,1.08170257,625.61,624.06,0.320482]
[1739248679799,0.86032257,625.6,624.06,1.27994153]
[1739248680202,1.08170257,625.59,624.06,1.27994153]
[1739248680407,0.86032257,625.58,624.06,1.27994153]
[1739248680602,1.08170257,625.57,624.06,0.320482]
[1739248680807,0.85971838,625.56,624.06,0.320482]
[1739248681008,1.08170257,625.57,624.06,0.320482]
[1739248681608,1.08170257,625.64,624.06,1.27990341]
[1739248681809,1.08170257,625.64,624.07,0.95942141]
[1739248682103,1.08170257,625.64,624.09,0.32046659]
[1739248682909,1.08170257,625.64,624.11,1.20973791]
[1739248683105,1.08170257,625.64,624.13,0.32044606]
[1739248685409,0.8586769,625.63,624.13,0.32044606]
[1739248685703,1.08170257,625.62,624.13,0.32044606]
[1739248685909,0.85870156,625.61,624.13,0.32044606]
[1739248686104,1.08170257,625.6,624.13,0.32044606]
[1739248687112,1.08170257,625.64,624.13,0.32044606]
[1739248687609,0.85827877,625.63,624.13,0.32044606]
[1739248688313,1.08170257,625.64,624.13,0.32044606]
[1739248688514,0.85811735,625.63,624.13,0.32044606]
[1739248689114,1.08170257,625.62,624.13,0.32044606]
[1739248689813,1.08170257,625.64,624.13,0.32044606]
[1739248690015,0.85797268,625.63,624.13,0.32044606]
[1739248690213,1.08170257,625.64,624.13,0.32044606]
[1739248690411,1.08170257,625.62,624.13,0.32044606]
[1739248690816,1.08170257,625.64,624.13,0.32044606]
[1739248692820,0.85751222,625.63,624.13,0.32044606]
[1739248693021,1.08170257,625.64,624.13,0.32044606]
[1739248693521,0.31966754,625.65,624.13,0.32044606]
[1739248697420,0.29384053,625.64,624.13,0.32044606]
[1739248697927,1.37149661,625.64,624.13,0.32044606]
[1739248698123,0.29384053,625.63,624.13,0.32044606]
[1739248701134,0.85705391,625.62,624.13,0.32044606]
[1739248701334,0.29384053,625.61,624.13,0.32044606]
[1739248701533,0.85705391,625.6,624.13,0.32044606]
[1739248701930,1.93470999,625.59,624.13,0.32044606]
[1739248702133,1.07765608,625.59,624.13,0.32044606]
[1739248702635,1.07765608,625.64,624.13,0.32044606]
[1739248702936,1.15090092,625.63,624.13,0.32044606]
[1739248703137,1.15090092,625.62,624.13,0.32044606]
[1739248703434,1.15090092,625.61,624.13,0.32044606]
[1739248703735,0.85704651,625.6,624.13,0.32044606]
[1739248704034,1.07765608,625.59,624.13,0.32044606]
[1739248704835,0.85707779,625.58,624.13,0.32044606]
[1739248705133,1.07765608,625.64,624.13,0.32044606]
[1739248705334,1.15096315,625.63,624.13,0.32044606]
[1739248705537,1.15096315,625.62,624.13,0.32044606]
[1739248705730,1.15096315,625.61,624.13,0.32044606]
[1739248705930,1.15096315,625.6,624.13,0.32044606]
[1739248706130,0.85710129,625.59,624.13,1.53018397]
[1739248706332,1.07765608,625.6,624.13,1.53018397]
[1739248706531,1.07765608,625.6,624.13,1.85918397]
[1739248706731,1.07765608,625.64,624.13,1.85918397]
[1739248707036,1.15093152,625.63,624.13,1.85918397]
[1739248707235,0.85708324,625.62,624.13,1.85918397]
[1739248707532,0.85708324,625.61,624.13,1.85918397]
[1739248707731,0.85711165,625.6,624.13,1.85918397]
[1739248707942,0.85711165,625.59,624.13,1.85918397]
[1739248708137,0.85711165,625.59,624.16,1.20973791]
[1739248708332,0.85711165,625.59,624.18,0.32042039]
[1739248708738,1.07765608,625.58,624.18,0.32042039]
[1739248709440,1.07765608,625.64,624.18,0.32042039]
[1739248709631,0.85716202,625.63,624.18,0.32042039]
[1739248710237,1.07765608,625.62,624.18,0.32042039]
[1739248710432,0.85716202,625.61,624.18,0.32042039]
[1739248710840,1.07765608,625.6,624.2,1.20973791]
[1739248711140,0.85716202,625.59,624.21,0.32040499]
[1739248711334,0.85727151,625.58,624.21,0.32040499]
[1739248711539,1.07765608,625.6,624.21,0.32040499]
[1739248711841,1.07765608,625.57,624.21,0.32040499]
[1739248712440,0.31966754,625.65,624.28,1.20973791]
[1739248712636,0.85733145,625.64,624.29,0.32036393]
[1739248712834,1.07765608,625.63,624.29,0.32036393]
[1739248713033,0.85733145,625.62,624.29,0.32036393]
[1739248713238,1.07765608,625.61,624.29,0.32036393]
[1739248713540,0.85733145,625.6,624.29,0.32036393]
[1739248714141,1.07765608,625.59,624.29,0.32036393]
[1739248714739,0.31966754,625.65,624.29,0.32036393]
[1739248714940,0.85750895,625.64,624.29,0.32036393]
[1739248715440,0.31966754,625.65,624.29,0.32036393]
[1739248715742,1.07805155,625.63,624.29,0.32036393]
[1739248715937,0.8576898,625.62,624.29,0.32036393]
[1739248716138,1.07805155,625.61,624.29,0.32036393]
[1739248716335,0.8576898,625.6,624.29,0.32036393]
[1739248716739,1.07805155,625.59,624.29,0.32036393]
[1739248716936,0.8576898,625.58,624.29,0.32036393]
[1739248717942,1.07805155,625.57,624.29,0.32036393]
[1739248718138,0.8576898,625.56,624.29,0.32036393]
[1739248718643,1.07805155,625.55,624.29,0.32036393]
[1739248718845,0.8576898,625.54,624.29,0.32036393]
[1739248719143,1.07805155,625.53,624.29,0.32036393]
[1739248719444,0.8576898,625.52,624.29,0.32036393]
[1739248720339,1.07805155,625.51,624.29,0.32036393]
[1739248720547,2.23090022,625.5,624.29,0.32036393]
[1739248720843,2.25549066,625.49,624.29,0.32036393]
[1739248721040,1.17744422,625.48,624.29,0.32036393]
[1739248721245,0.8576898,625.47,624.29,0.32036393]
[1739248722342,1.07805155,625.46,624.29,0.32036393]
[1739248722546,0.8576898,625.45,624.29,0.32036393]
[1739248723148,1.07805155,625.44,624.29,0.32036393]
[1739248723346,0.8576898,625.43,624.29,0.32036393]
[1739248723745,1.07805155,625.42,624.29,0.32036393]
[1739248723945,0.8576898,625.41,624.29,0.32036393]
[1739248724344,1.93712908,625.4,624.29,0.32036393]
[1739248724548,0.85907753,625.39,624.29,0.32036393]
[1739248724943,1.07805155,625.38,624.29,0.32036393]
[1739248725148,0.85907753,625.37,624.29,0.32036393]
[1739248725452,1.07805155,625.36,624.29,0.32036393]
[1739248725649,0.85907753,625.35,624.29,0.32036393]
[1739248726149,1.07805155,625.34,624.29,0.32036393]
[1739248726348,0.85907753,625.33,624.29,0.32036393]
[1739248726548,1.07805155,625.34,624.29,0.32036393]
[1739248726945,1.07805155,625.32,624.29,0.32036393]
[1739248727145,0.8603797,625.31,624.29,0.32036393]
[1739248727551,1.07805155,625.3,624.29,0.32036393]
[1739248728251,0.31975442,625.48,624.29,0.32036393]
[1739248728449,0.86036513,625.47,624.29,0.32036393]
[1739248728948,0.31975442,625.48,624.29,0.32036393]
[1739248729253,0.86039089,625.47,624.29,0.32036393]
[1739248729954,1.07805155,625.46,624.29,0.32036393]
[1739248730148,2.23701632,625.45,624.29,0.32036393]
[1739248730648,1.07805155,625.44,624.29,0.32036393]
[1739248730847,2.23701632,625.43,624.29,0.32036393]
[1739248731152,0.86039089,625.42,624.29,0.32036393]
[1739248731447,0.86039089,625.41,624.29,0.32036393]
[1739248731753,1.93844244,625.4,624.29,0.32036393]
[1739248731954,0.86039089,625.39,624.29,0.32036393]
[1739248732153,0.86056103,625.38,624.29,0.32036393]
[1739248732351,0.86056103,625.37,624.29,0.32036393]
[1739248732752,0.86054286,625.36,624.29,0.32036393]
[1739248732947,0.86054286,625.35,624.29,0.32036393]
[1739248733150,0.86054286,625.34,624.29,0.32036393]
[1739248733354,0.31975442,625.48,624.29,0.32036393]
[1739248733355,1.94221848,625.33,624.29,0.32036393]
[1739248733551,0.86054286,625.32,624.29,0.32036393]
[1739248734249,1.08167562,625.31,624.29,0.32036393]
[1739248734457,0.86054286,625.3,624.29,0.32036393]
[1739248735258,1.08167562,625.29,624.29,0.32036393]
[1739248735451,0.86054286,625.28,624.29,0.32036393]
[1739248736153,1.08167562,625.27,624.29,0.32036393]
[1739248737159,1.08167562,625.47,624.29,0.32036393]
[1739248737358,2.2391691,625.46,624.29,0.32036393]
[1739248737554,3.32084472,625.46,624.29,0.32036393]
[1739248737761,3.32084472,625.45,624.29,0.32036393]
[1739248737954,2.2391691,625.44,624.29,0.32036393]
[1739248738357,1.08167562,625.43,624.29,0.32036393]
[1739248738563,0.86121888,625.42,624.29,0.32036393]
[1739248738965,1.08167562,625.41,624.29,0.32036393]
[1739248739259,0.86121888,625.4,624.29,0.32036393]
[1739248739857,1.08167562,625.39,624.29,0.32036393]
[1739248740160,0.86121888,625.38,624.29,0.32036393]
[1739248740757,1.08167562,625.37,624.29,0.32036393]
[1739248740965,0.86121888,625.36,624.29,0.32036393]
[1739248741158,0.86111599,625.35,624.29,0.32036393]
[1739248741358,0.86112122,625.34,624.29,0.32036393]
[1739248741561,1.08167562,625.34,624.29,0.32036393]
[1739248742362,0.31975442,625.48,624.29,0.32036393]
[1739248742564,0.8611532,625.47,624.29,0.32036393]
[1739248742961,1.08167562,625.46,624.29,0.32036393]
[1739248743162,2.23899832,625.45,624.29,0.32036393]
[1739248743663,1.94282882,625.44,624.29,0.32036393]
[1739248743866,0.8611532,625.43,624.29,0.32036393]
[1739248744361,1.08167562,625.42,624.29,0.32036393]
[1739248744560,0.8611532,625.41,624.29,0.32036393]
[1739248745367,1.08167562,625.4,624.29,0.32036393]
[1739248745569,0.8611532,625.39,624.29,0.32036393]
[1739248745968,1.08167562,625.38,624.29,0.32036393]
[1739248746167,0.8611532,625.37,624.29,0.32036393]
[1739248746565,1.08167562,625.36,624.29,0.32036393]
[1739248747370,0.31975442,625.48,624.29,0.32036393]
[1739248762575,0.86129516,625.47,624.29,0.32036393]
[1739248763179,1.08167562,625.46,624.29,0.32036393]
[1739248763981,1.08167562,625.99,624.29,0.32036393]
[1739248764282,2.55827052,625.98,624.29,0.32036393]
[1739248764479,2.55827562,625.97,624.29,0.32036393]
[1739248764678,2.85204658,625.96,624.29,0.32036393]
[1739248764876,2.55770473,625.95,624.29,0.32036393]
[1739248765075,2.55770984,625.94,624.29,0.32036393]
[1739248765282,2.55771494,625.93,624.29,0.32036393]
[1739248765486,2.55772005,625.92,624.29,0.32036393]
[1739248765682,2.55772515,625.91,624.29,0.32036393]
[1739248765878,1.08199896,625.9,624.29,0.32036393]
[1739248766277,1.08199896,625.9,624.29,1.27869239]
[1739248766681,1.19745275,626.22,624.29,1.27869239]
[1739248767082,0.95453311,626.9,624.29,1.27869239]
[1739248767083,1.19745275,626.65,624.29,1.27869239]
[1739248767279,2.54447355,626.64,624.29,1.27869239]
[1739248767479,2.54447865,626.63,624.29,1.27869239]
[1739248767786,2.54448374,626.62,624.29,1.27869239]
[1739248767983,0.85588886,626.61,624.29,1.27869239]
[1739248768381,1.17506665,626.61,624.29,1.27869239]
[1739248768582,0.85588886,626.6,624.29,1.27869239]
[1739248768983,1.07557994,626.59,624.29,1.27869239]
[1739248769381,0.31917779,626.61,624.29,1.27869239]
[1739248770586,0.95453311,627.54,624.29,1.27869239]
[1739248770788,0.31871494,627.52,624.29,1.27869239]
[1739248770988,0.95453311,627.5,624.29,1.27869239]
[1739248771182,0.31873525,627.48,624.29,1.27869239]
[1739248771385,0.29313299,627.47,624.29,1.27869239]
[1739248771687,0.31875049,627.45,624.29,1.27869239]
[1739248771887,1.14374207,627.44,624.29,1.27869239]
[1739248772088,0.31876573,627.42,624.29,1.27869239]
[1739248772388,0.60218986,627.78,624.3,0.95832846]
[1739248772589,0.60218986,627.78,624.47,0.32027159]
[1739248773386,2.44479937,628.47,624.48,0.95832846]
[1739248773583,2.44479937,628.47,624.49,0.95832846]
[1739248773789,2.44479937,628.47,624.68,0.32016392]
[1739248773988,1.1706199,628.68,624.69,0.95832846]
[1739248774184,1.1706199,628.68,624.7,0.95832846]
[1739248774381,0.67051711,629.39,624.89,0.32005632]
[1739248774586,0.67051711,629.39,624.9,0.95832846]
[1739248774787,0.67051711,629.39,625.12,0.31993857]
[1739248774984,0.67051711,629.39,625.13,0.95832846]
[1739248775289,0.67051711,629.39,625.34,0.31982601]
[1739248775487,1.45758816,629.8,625.35,0.95832846]
[1739248775687,1.45758816,629.8,625.57,0.31970842]
[1739248775983,1.45758816,629.8,625.58,0.95832846]
[1739248776189,1.45758816,629.8,625.59,0.95832846]
[1739248776484,1.45758816,629.8,625.6,0.95832846]
[1739248776685,1.45758816,629.8,625.61,0.95832846]
[1739248776891,1.45758816,629.8,625.62,0.95832846]
[1739248777094,1.45758816,629.8,625.63,0.95832846]
[1739248777392,1.65802451,632.14,625.64,0.95832846]
[1739248777592,0.29098762,632.13,625.65,0.95832846]
[1739248777788,0.29098762,632.13,625.66,0.95832846]
[1739248777993,0.29098762,632.13,625.67,0.95832846]
[1739248778193,0.29098762,632.13,625.58,1.20973791]
[1739248778194,0.29098762,632.12,625.68,0.95832846]
[1739248778394,1.65802451,632.14,625.69,0.95832846]
[1739248778395,0.97207891,632.11,625.69,0.95832846]
[1739248778591,1.65802451,632.14,625.7,0.95832846]
[1739248778791,0.97404468,632.13,625.71,0.95832846]
[1739248778986,0.97404468,632.12,625.72,0.95832846]
[1739248779187,0.97404468,632.11,625.58,1.20973791]
[1739248779393,1.65802451,632.14,625.58,1.20973791]
[1739248779394,0.31656088,631.79,625.58,1.20973791]
[1739248779593,1.76522722,631.78,625.89,0.31954496]
[1739248779793,0.31671127,631.49,625.89,0.31954496]
[1739248779995,0.97404468,631.48,625.89,0.31954496]
[1739248780188,0.31685176,631.21,625.89,0.31954496]
[1739248780496,0.97492781,631.2,625.89,0.31954496]
[1739248780692,0.31698735,630.94,625.89,0.31954496]
[1739248780991,0.97492781,630.93,625.89,0.31954496]
[1739248781190,0.31710294,630.71,625.89,0.31954496]
[1739248781395,0.29191843,630.7,625.89,0.31954496]
[1739248781591,0.31720856,630.5,625.89,0.31954496]
[1739248781897,0.97492781,630.49,625.89,0.31954496]
[1739248782089,0.31722365,630.47,625.89,0.31954496]
[1739248782292,0.29182852,630.46,625.89,0.31954496]
[1739248782494,0.31723875,630.44,625.89,0.31954496]
[1739248782694,0.29182852,630.43,625.89,0.31954496]
[1739248782997,0.31725385,630.41,625.89,0.31954496]
[1739248783390,0.29166216,630.4,625.89,0.31954496]
[1739248783794,0.31725385,630.41,625.89,0.31954496]
[1739248783995,0.29162571,630.4,625.89,0.31954496]
[1739248784396,0.31726391,630.39,625.89,0.31954496]
[1739248784597,0.29162571,630.38,625.89,0.31954496]
[1739248784994,0.31727901,630.36,625.89,0.31954496]
[1739248785198,0.29162571,630.35,625.89,0.31954496]
[1739248785393,0.31729411,630.33,625.89,0.31954496]
[1739248785593,0.29162571,630.32,625.89,0.31954496]
[1739248785798,0.31730921,630.3,625.89,0.31954496]
[1739248785998,0.29187826,630.29,625.89,0.31954496]
[1739248786197,0.31732432,630.27,625.89,0.31954496]
[1739248786406,0.29187826,630.26,625.89,0.31954496]
[1739248786700,0.31732432,630.27,625.89,0.31954496]
[1739248786901,0.29163358,630.26,625.89,0.31954496]
[1739248787099,0.97452542,631.98,625.89,0.31954496]
[1739248787397,1.65959273,630.55,625.89,0.31954496]
[1739248787596,0.31661099,631.69,625.89,0.31954496]
[1739248787802,0.29149334,631.68,625.89,0.31954496]
[1739248788001,0.31669622,631.52,625.89,0.31954496]
[1739248788200,0.29149334,631.51,625.89,0.31954496]
[1739248788400,0.31675641,631.4,625.89,0.31954496]
[1739248788697,0.29149334,631.39,625.89,0.31954496]
[1739248789002,0.31677146,631.37,625.89,0.31954496]
[1739248789196,0.29149334,631.36,625.89,0.31954496]
[1739248789400,0.31683168,631.25,625.89,0.31954496]
[1739248789597,0.29149334,631.24,625.89,0.31954496]
[1739248789798,0.31684172,631.23,625.89,0.31954496]
[1739248789995,0.29149334,631.22,625.89,0.31954496]
[1739248790302,0.31685678,631.2,625.89,0.31954496]
[1739248790497,0.29149334,631.19,625.89,0.31954496]
[1739248790698,0.31687184,631.17,625.89,0.31954496]
[1739248791104,0.29157974,631.16,625.89,0.31954496]
[1739248791297,0.31688188,631.15,625.89,0.31954496]
[1739248791501,0.29157974,631.14,625.89,0.31954496]
[1739248791801,0.31688188,631.15,625.89,0.31954496]
[1739248793196,0.29138886,631.14,625.89,0.31954496]
[1739248793396,0.31689192,631.13,625.89,0.31954496]
[1739248794000,0.29129498,631.12,625.89,0.31954496]
[1739248794301,0.31689192,631.13,625.89,0.31954496]
[1739248794804,0.68230768,633.76,625.89,0.31954496]
[1739248795000,1.65831421,631.51,625.89,0.31954496]
[1739248795201,0.2911144,631.5,625.89,0.31954496]
[1739248795399,1.65822202,631.5,625.89,0.31954496]
[1739248795905,0.68230768,633.33,625.89,0.31954496]
[1739248796105,0.31594578,633.02,625.89,0.31954496]
[1739248796299,0.97342108,633.01,625.89,0.31954496]
[1739248796501,0.97342108,633.0,625.89,0.31954496]
[1739248796702,0.97342108,632.99,625.89,0.31954496]
[1739248796903,0.2911134,632.98,625.89,0.31954496]
[1739248797199,0.2911134,632.97,625.89,0.31954496]
[1739248797400,0.2911134,632.96,625.89,0.31954496]
[1739248797601,0.97342108,632.95,625.89,0.31954496]
[1739248797806,0.97342108,632.94,625.89,0.31954496]
[1739248798008,0.97342108,632.93,625.89,0.31954496]
[1739248798203,0.97342108,632.92,625.89,0.31954496]
[1739248798505,0.2911134,632.91,625.89,0.31954496]
[1739248798702,0.2911134,632.9,625.89,0.31954496]